bitfinex-derivatives/quotes_BTCF0:USTF0_20251023
["timestamp","ask_amount","ask_price","bid_price","bid_amount"]
[1761191269753,1.02409712,108410.0,108400.0,0.1135613]
[1761191270143,0.55692399,108410.0,108400.0,0.1362913]
[1761191270345,0.88132399,108410.0,108400.0,0.1362913]
[1761191270554,0.99923289,108410.0,108400.0,0.1362913]
[1761191271650,0.88132399,108410.0,108400.0,0.1362913]
[1761191272256,0.90622822,108410.0,108400.0,0.1362913]
[1761191272458,0.58182822,108410.0,108400.0,0.1362913]
[1761191272658,0.90622822,108410.0,108400.0,0.1362913]
[1761191274562,0.69973712,108410.0,108400.0,0.1362913]
[1761191274763,1.02409712,108410.0,108400.0,0.1362913]
[1761191275460,0.46391932,108410.0,108400.0,0.1362913]
[1761191275659,0.56031421,108410.0,108400.0,0.1499113]
[1761191275861,0.90622822,108410.0,108400.0,0.1499113]
[1761191276563,0.58182822,108410.0,108400.0,0.1499113]
[1761191276864,0.90622822,108410.0,108400.0,0.1499113]
[1761191278566,0.45130932,108410.0,108400.0,0.6678202]
[1761191278760,0.72929108,108410.0,108400.0,0.5499113]
[1761191279064,0.72929108,108410.0,108400.0,1.29867893]
[1761191279065,0.02262509,108410.0,108400.0,1.29867893]
[1761191279255,0.00111108,108410.0,108400.0,1.29867893]
[1761191279461,8e-08,108410.0,108400.0,1.34800732]
[1761191279661,0.36737,108420.0,108410.0,0.1497194]
[1761191279966,0.36737,108420.0,108410.0,0.7905194]
[1761191280372,0.48544772,108420.0,108410.0,0.7905194]
[1761191280672,0.04304009,108420.0,108410.0,0.7905194]
[1761191285475,0.04304009,108420.0,108410.0,0.1997194]
[1761191286269,0.16100772,108420.0,108410.0,0.1997194]
[1761191288084,0.52180772,108420.0,108410.0,0.1497194]
[1761191288278,0.67452936,108420.0,108410.0,0.1497194]
[1761191288476,0.67452936,108420.0,108410.0,0.1360994]
[1761191288679,1.07452936,108420.0,108410.0,0.0922294]
[1761191288884,1.09943359,108420.0,108410.0,0.0922294]
[1761191289985,1.13263762,108420.0,108410.0,0.0922294]
[1761191290981,1.13263762,108420.0,108410.0,0.1360994]
[1761191292178,1.13263762,108420.0,108410.0,0.1149094]
[1761191292383,1.13263762,108420.0,108410.0,0.0922294]
[1761191293782,1.13263762,108420.0,108410.0,0.1360994]
[1761191297089,0.73263762,108420.0,108410.0,0.1360994]
[1761191298092,0.73263762,108420.0,108410.0,0.0922294]
[1761191301494,0.73263762,108420.0,108410.0,0.1149094]
[1761191301884,0.73263762,108420.0,108410.0,0.1360994]
[1761191302889,0.73263762,108420.0,108410.0,0.1149094]
[1761191303696,0.71112361,108420.0,108410.0,0.1149094]
[1761191304092,0.71104199,108420.0,108410.0,0.1149094]
[1761191305394,0.71104199,108420.0,108410.0,0.1372294]
[1761191305795,0.54663033,108420.0,108410.0,0.1508294]
[1761191305997,0.87099033,108420.0,108410.0,0.1508294]
[1761191306886,0.98895796,108420.0,108410.0,0.1508294]
[1761191307295,0.87103033,108420.0,108410.0,0.1508294]
[1761191307496,1.00231796,108420.0,108410.0,0.1508294]
[1761191308299,0.88435033,108420.0,108410.0,0.1508294]
[1761191308599,1.00231796,108420.0,108410.0,0.1508294]
[1761191308799,1.03552199,108420.0,108410.0,0.1508294]
[1761191309995,0.71112199,108420.0,108410.0,0.1508294]
[1761191310200,0.91751436,108420.0,108410.0,0.1508294]
[1761191310396,0.90419436,108420.0,108410.0,0.1508294]
[1761191310596,0.57983436,108420.0,108410.0,0.1508294]
[1761191311003,0.90419436,108420.0,108410.0,0.1508294]
[1761191311594,0.57983436,108420.0,108410.0,0.1508294]
[1761191311801,0.90415436,108420.0,108410.0,0.1508294]
[1761191312390,0.57983436,108420.0,108410.0,0.1508294]
[1761191312801,0.90415436,108420.0,108410.0,0.1508294]
[1761191315197,0.87933175,108420.0,108410.0,0.1508294]
[1761191317110,0.92899467,108420.0,108410.0,0.1508294]
[1761191318810,0.90420153,108420.0,108410.0,0.1508294]
[1761191319715,0.91752153,108420.0,108410.0,0.1508294]
[1761191320308,0.55672153,108420.0,108410.0,0.1508294]
[1761191320610,0.91752153,108420.0,108410.0,0.1508294]
[1761191321111,1.03548916,108420.0,108410.0,0.1148794]
[1761191321313,1.01061938,108420.0,108410.0,0.1371994]
[1761191321613,0.77468412,108420.0,108410.0,0.1371994]
[1761191321910,1.01061938,108420.0,108410.0,0.1371994]
[1761191323111,0.89265175,108420.0,108410.0,0.1371994]
[1761191324014,0.89265175,108420.0,108410.0,0.1507994]
[1761191324508,0.06590517,108420.0,108410.0,1.19473639]
[1761191324704,0.04104009,108420.0,108410.0,1.36203241]
[1761191324899,0.00011009,108420.0,108410.0,1.36203241]
[1761191325108,0.00011009,108420.0,108410.0,1.32889542]
[1761191326014,0.4064,108430.0,108420.0,0.1507909]
[1761191326316,0.7308,108430.0,108420.0,0.18395262]
[1761191327115,0.73085727,108430.0,108420.0,0.18395262]
[1761191327510,0.8488249,108430.0,108420.0,0.18395262]
[1761191327712,0.8487849,108430.0,108420.0,0.18395262]
[1761191328410,0.8487849,108430.0,108420.0,0.1507909]
[1761191329810,0.4879849,108430.0,108420.0,0.8115909]
[1761191330116,0.37001727,108430.0,108420.0,0.8115909]
[1761191330318,0.4879849,108430.0,108420.0,0.8115909]
[1761191330916,0.1636249,108430.0,108420.0,0.8115909]
[1761191331316,0.4879449,108430.0,108420.0,0.5115909]
[1761191331518,0.4879449,108430.0,108420.0,0.7915909]
[1761191331814,0.4879449,108430.0,108420.0,0.5615909]
[1761191334020,0.1636249,108430.0,108420.0,0.5615909]
[1761191334228,0.4879049,108430.0,108420.0,0.5615909]
[1761191336620,0.4879049,108430.0,108420.0,0.1907909]
[1761191340728,0.48788176,108430.0,108420.0,0.1907909]
[1761191341730,0.48784176,108430.0,108420.0,0.1907909]
[1761191341914,0.16360176,108430.0,108420.0,0.1907909]
[1761191342119,0.48784176,108430.0,108420.0,0.8015909]
[1761191342319,0.48784176,108430.0,108420.0,0.4407909]
[1761191343027,0.49880176,108430.0,108420.0,0.1907909]
[1761191343427,0.48784176,108430.0,108420.0,0.1907909]
[1761191343926,0.48784176,108430.0,108420.0,0.1507909]
[1761191344124,0.16360176,108430.0,108420.0,0.26873539]
[1761191344334,0.48784176,108430.0,108420.0,0.53873539]
[1761191344827,0.48784176,108430.0,108420.0,0.4207909]
[1761191345028,0.48884176,108430.0,108420.0,0.4207909]
[1761191346129,0.16460176,108430.0,108420.0,0.4207909]
[1761191346625,0.16360176,108430.0,108420.0,0.5615909]
[1761191347130,0.16360176,108430.0,108420.0,0.59475262]
[1761191347428,0.16360176,108430.0,108420.0,0.71269711]
[1761191348632,0.16360176,108430.0,108420.0,0.96269711]
[1761191348927,5.727e-05,108430.0,108420.0,1.4348816]
[1761191349128,5.727e-05,108430.0,108420.0,1.0862655]
[1761191349339,0.02245727,108430.0,108420.0,1.3562655]
[1761191349525,0.04398727,108430.0,108420.0,1.3562655]
[1761191349926,0.16193176,108430.0,108420.0,1.3562655]
[1761191350734,0.16193176,108430.0,108420.0,1.3572655]
[1761191352248,0.16193176,108430.0,108420.0,1.0872655]
[1761191353447,0.16193176,108430.0,108420.0,1.0862655]
[1761191354146,0.16193176,108430.0,108420.0,1.05310378]
[1761191358749,0.16193176,108430.0,108420.0,1.08628611]
[1761191360350,0.14040176,108430.0,108420.0,1.34628611]
[1761191360541,0.14040176,108430.0,108420.0,0.91834162]
[1761191360740,0.14040176,108430.0,108420.0,1.08628611]
[1761191360940,0.14040176,108430.0,108420.0,1.22834162]
[1761191361141,0.14040176,108430.0,108420.0,1.34628611]
[1761191363948,0.14040176,108430.0,108420.0,0.98548611]
[1761191364146,0.14040176,108430.0,108420.0,1.34628611]
[1761191365247,0.14277325,108440.0,108420.0,1.83104827]
[1761191365449,0.11794449,108440.0,108430.0,0.71023958]
[1761191365651,0.11794449,108440.0,108430.0,1.03023958]
[1761191365850,0.06959876,108450.0,108440.0,0.1489839]
[1761191366046,0.18754325,108450.0,108440.0,0.7997839]
[1761191366650,0.18754325,108450.0,108440.0,0.8297839]
[1761191367351,0.18754325,108450.0,108440.0,0.7997839]
[1761191367949,0.18754325,108450.0,108440.0,0.5097839]
[1761191368253,0.18754325,108450.0,108440.0,0.7997839]
[1761191368449,0.16271449,108450.0,108440.0,0.7997839]
[1761191369853,0.16371449,108450.0,108440.0,0.7997839]
[1761191370153,0.16271449,108450.0,108440.0,0.7997839]
[1761191370946,0.16371449,108450.0,108440.0,0.7997839]
[1761191371253,0.16371449,108450.0,108440.0,0.80921321]
[1761191371755,0.04577,108450.0,108440.0,0.80921321]
[1761191371947,0.16371449,108450.0,108440.0,0.80921321]
[1761191372453,0.16271449,108450.0,108440.0,0.80921321]
[1761191372650,0.16271449,108450.0,108440.0,0.44841321]
[1761191372847,0.16271449,108450.0,108440.0,0.48841321]
[1761191373355,0.16271449,108450.0,108440.0,0.44841321]
[1761191373549,0.16271449,108450.0,108440.0,0.48841321]
[1761191373953,0.16271449,108450.0,108440.0,0.43841321]
[1761191374449,0.16271449,108450.0,108440.0,0.79921321]
[1761191374655,0.16271449,108450.0,108440.0,0.43841321]
[1761191375647,0.67952774,108450.0,108440.0,0.1135739]
[1761191376251,0.67952774,108450.0,108440.0,0.1363539]
[1761191377148,0.68052774,108450.0,108440.0,0.1363539]
[1761191380553,0.68052774,108450.0,108440.0,0.0922039]
[1761191380861,1.08052774,108450.0,108440.0,0.0922039]
[1761191381752,1.08052774,108450.0,108440.0,0.1135739]
[1761191382159,1.11373177,108450.0,108440.0,0.1135739]
[1761191382357,1.11373177,108450.0,108440.0,0.0922039]
[1761191382951,0.71373177,108450.0,108440.0,0.1363539]
[1761191383152,0.91994728,108450.0,108440.0,0.1489839]
[1761191383454,1.00468774,108450.0,108440.0,0.1489839]
[1761191383655,0.68052774,108450.0,108440.0,0.1489839]
[1761191383852,1.00468774,108450.0,108440.0,0.1489839]
[1761191384260,1.00468774,108450.0,108440.0,0.1363539]
[1761191385859,1.03789177,108450.0,108440.0,0.1363539]
[1761191386061,1.00468774,108450.0,108440.0,0.1363539]
[1761191386361,1.03789177,108450.0,108440.0,0.1363539]
[1761191386567,1.00468774,108450.0,108440.0,0.1363539]
[1761191387359,1.03789177,108450.0,108440.0,0.1363539]
[1761191387563,1.00468774,108450.0,108440.0,0.1363539]
[1761191387963,1.03789177,108450.0,108440.0,0.1363539]
[1761191389475,1.43789177,108450.0,108440.0,0.0922039]
[1761191389659,1.41306301,108450.0,108440.0,0.0922039]
[1761191391664,1.46272593,108450.0,108440.0,0.0922039]
[1761191395266,1.46272593,108450.0,108440.0,0.0882039]
[1761191396560,1.58067042,108450.0,108440.0,0.0882039]
[1761191396760,1.46272593,108450.0,108440.0,0.0882039]
[1761191398170,1.41306301,108450.0,108440.0,0.0882039]
[1761191398767,1.46272593,108450.0,108440.0,0.0882039]
[1761191399269,1.4295219,108450.0,108440.0,0.0882039]
[1761191400366,1.54746639,108450.0,108440.0,0.0882039]
[1761191400569,0.0569,108440.0,108430.0,0.0922121]
[1761191400765,0.8211679,108440.0,108430.0,0.0922121]
[1761191400959,1.2211679,108440.0,108420.0,0.0922178]
[1761191401270,1.02573341,108430.0,108420.0,0.0922178]
[1761191401472,1.1436779,108430.0,108420.0,0.0922178]
[1761191401664,0.05729,108420.0,108410.0,0.0922285]
[1761191401860,0.82979737,108420.0,108410.0,0.0922285]
[1761191402471,0.8546287,108420.0,108410.0,0.0922285]
[1761191402663,0.73683157,108420.0,108410.0,0.0922285]
[1761191404172,0.68719714,108420.0,108410.0,0.0922285]
[1761191405164,0.73683157,108420.0,108410.0,0.0922285]
[1761191405372,0.01293,108410.0,108400.0,0.092233]
[1761191405563,0.90264414,108410.0,108400.0,0.092233]
[1761191405767,0.95227857,108410.0,108400.0,0.092233]
[1761191406973,0.95227857,108410.0,108400.0,0.093233]
[1761191407175,0.90264414,108410.0,108400.0,0.093233]
[1761191408176,0.92736257,108410.0,108400.0,0.093233]
[1761191408770,0.89435356,108410.0,108400.0,0.093233]
[1761191408975,0.89435356,108410.0,108400.0,0.136003]
[1761191411978,0.8849566,108410.0,108400.0,0.136003]
[1761191412176,0.04429,108410.0,108400.0,0.149613]
[1761191412379,0.36853,108410.0,108400.0,0.549613]
[1761191412579,0.04429,108410.0,108400.0,0.549613]
[1761191412878,0.02256,108410.0,108400.0,1.28843117]
[1761191413078,0.04429,108420.0,108410.0,0.1486095]
[1761191413279,0.52310817,108430.0,108420.0,0.1486009]
[1761191413479,0.84742817,108430.0,108420.0,0.1486009]
[1761191414478,0.84842817,108430.0,108420.0,0.1486009]
[1761191419468,0.52410817,108430.0,108420.0,0.5486009]
[1761191419683,0.84838817,108430.0,108420.0,0.5486009]
[1761191420381,0.84738817,108430.0,108420.0,0.5486009]
[1761191422792,0.84838817,108430.0,108420.0,0.5486009]
[1761191425797,0.84738817,108430.0,108420.0,0.5486009]
[1761191428394,0.16230817,108430.0,108420.0,0.5986009]
[1761191428596,0.36853,108430.0,108420.0,1.2294009]
[1761191428896,0.48654817,108430.0,108420.0,1.2094009]
[1761191429290,0.16230817,108430.0,108420.0,0.9594009]
[1761191429491,0.16230817,108430.0,108420.0,1.1894009]
[1761191429792,0.16230817,108430.0,108420.0,0.9094009]
[1761191429990,0.16230817,108430.0,108420.0,0.9594009]
[1761191430196,0.04429,108430.0,108420.0,0.9594009]
[1761191431094,0.5480866,108440.0,108430.0,0.1499524]
[1761191431295,0.84760817,108440.0,108430.0,0.1499524]
[1761191431796,0.52336817,108440.0,108430.0,0.1499524]
[1761191431999,0.84760817,108440.0,108430.0,0.1499524]
[1761191432600,0.84860817,108440.0,108430.0,0.1499524]
[1761191435505,0.48780817,108440.0,108430.0,0.1499524]
[1761191436403,0.04555,108440.0,108430.0,0.1499524]
[1761191436605,0.48780817,108440.0,108430.0,0.1499524]
[1761191437005,0.48776817,108440.0,108430.0,0.1499524]
[1761191439398,0.48776817,108440.0,108430.0,0.1494524]
[1761191440211,0.5124866,108440.0,108430.0,0.1494524]
[1761191444510,0.54549561,108440.0,108430.0,0.1494524]
[1761191448908,0.58341161,108440.0,108430.0,0.1494524]
[1761191458826,0.55861886,108440.0,108430.0,0.1494524]
[1761191460025,0.54561886,108440.0,108430.0,0.1494524]
[1761191460428,0.10340069,108440.0,108430.0,0.1494524]
[1761191460624,0.54562523,108440.0,108430.0,0.4626267]
[1761191460822,0.42760706,108440.0,108430.0,0.4626267]
[1761191461024,0.54562523,108440.0,108430.0,0.1826267]
[1761191462229,0.51261622,108440.0,108430.0,0.1826267]
[1761191462419,0.18741622,108440.0,108430.0,0.1826267]
[1761191462727,0.30524473,108440.0,108430.0,0.1826267]
[1761191463329,0.30524473,108440.0,108430.0,0.1494524]
[1761191467430,0.303376,108440.0,108430.0,0.1494524]
[1761191470738,0.303376,108440.0,108430.0,0.2226267]
[1761191471130,0.303376,108440.0,108430.0,0.5226267]
[1761191471538,0.303376,108440.0,108430.0,0.2326267]
[1761191472429,0.303376,108440.0,108430.0,0.35055004]
[1761191472430,0.06752932,108440.0,108430.0,0.35055004]
[1761191472636,0.16513139,108450.0,108440.0,0.1506139]
[1761191472935,0.18656139,108450.0,108440.0,0.71251154]
[1761191473138,0.06863805,108450.0,108440.0,0.71251154]
[1761191473436,0.18656139,108450.0,108440.0,1.30667154]
[1761191473635,0.16171334,108450.0,108440.0,1.30667154]
[1761191474634,0.16171334,108450.0,108440.0,1.09667154]
[1761191474838,0.16171334,108450.0,108440.0,0.9787482]
[1761191475132,0.16171334,108450.0,108440.0,1.09667154]
[1761191476238,0.16171334,108450.0,108440.0,1.06349724]
[1761191477343,0.16171334,108450.0,108440.0,1.24349724]
[1761191477637,0.04379,108450.0,108440.0,1.24349724]
[1761191478040,0.16171334,108450.0,108440.0,1.24349724]
[1761191482643,0.16171334,108450.0,108440.0,1.00349724]
[1761191482946,0.16171334,108450.0,108440.0,1.24349724]
[1761191484551,0.14277139,108460.0,108450.0,0.152146]
[1761191484743,0.18650139,108460.0,108450.0,0.37006934]
[1761191485047,0.18650139,108460.0,108450.0,0.252146]
[1761191486050,0.30442473,108460.0,108450.0,0.252146]
[1761191486248,0.30442473,108460.0,108450.0,0.26123376]
[1761191487155,0.06857805,108460.0,108450.0,0.26123376]
[1761191487356,0.30442473,108460.0,108450.0,0.26123376]
[1761191489858,0.30442473,108460.0,108450.0,0.83203376]
[1761191490651,0.30442473,108460.0,108450.0,0.9499571]
[1761191491859,0.18650139,108460.0,108450.0,0.9499571]
[1761191493350,0.02216,108460.0,108450.0,0.9499571]
[1761191493556,0.14008334,108460.0,108450.0,0.9499571]
[1761191494061,0.11792334,108460.0,108450.0,0.9499571]
[1761191494360,0.2240404,108470.0,108460.0,0.1506675]
[1761191494863,0.10611706,108470.0,108460.0,0.1506675]
[1761191495065,0.10611706,108470.0,108460.0,0.26859084]
[1761191495066,0.2240404,108470.0,108460.0,0.26859084]
[1761191495666,0.2250404,108470.0,108460.0,0.1506675]
[1761191496367,0.10711706,108470.0,108460.0,0.1506675]
[1761191496567,0.2250404,108470.0,108460.0,0.1506675]
[1761191498874,0.24982678,108470.0,108460.0,0.1506675]
[1761191500363,0.08508756,108470.0,108460.0,1.37139418]
[1761191500567,0.03060855,108470.0,108460.0,1.77139418]
[1761191500769,0.03060855,108470.0,108460.0,1.65347084]
[1761191501272,0.03060855,108470.0,108460.0,1.77139418]
[1761191501575,0.02960855,108470.0,108460.0,1.65347084]
[1761191501871,0.0048,108470.0,108460.0,1.65347084]
[1761191502372,0.0048,108470.0,108460.0,1.77139418]
[1761191506174,0.0048,108470.0,108460.0,1.65347084]
[1761191506475,0.0048,108470.0,108460.0,1.77139418]
[1761191507077,0.0048,108470.0,108460.0,1.65347084]
[1761191507974,0.0048,108470.0,108460.0,1.77139418]
[1761191513785,0.14273189,108480.0,108470.0,0.152089]
[1761191514085,0.16527189,108480.0,108470.0,0.97081234]
[1761191514278,0.02480855,108480.0,108470.0,0.97081234]
[1761191514480,0.55708235,108490.0,108480.0,0.1520805]
[1761191514684,0.55708235,108490.0,108480.0,0.4120805]
[1761191515775,0.60671678,108490.0,108480.0,0.59400384]
[1761191515977,0.58286432,108490.0,108480.0,0.5960805]
[1761191516984,0.58386432,108490.0,108480.0,0.5960805]
[1761191517785,0.58386432,108490.0,108480.0,0.2720805]
[1761191519092,0.58386432,108490.0,108480.0,0.1520805]
[1761191519287,0.58386432,108490.0,108480.0,0.4020805]
[1761191519887,0.58386432,108490.0,108480.0,0.4220805]
[1761191522291,0.58386432,108490.0,108480.0,0.1520805]
[1761191522593,0.58386432,108490.0,108480.0,0.2520805]
[1761191522788,0.58376628,108490.0,108480.0,0.2520805]
[1761191523189,0.55898431,108490.0,108480.0,0.2520805]
[1761191525091,0.60861874,108490.0,108480.0,0.2520805]
[1761191525592,0.55898431,108490.0,108480.0,0.2520805]
[1761191526084,0.55898431,108490.0,108480.0,0.1520805]
[1761191526490,0.55898431,108490.0,108480.0,0.2620805]
[1761191527991,0.55898431,108490.0,108480.0,0.1520805]
[1761191528599,0.55898431,108490.0,108480.0,0.2620805]
[1761191530985,0.57560973,108490.0,108480.0,0.2620805]
[1761191531185,0.57560973,108490.0,108480.0,0.1520805]
[1761191531391,0.57560973,108490.0,108480.0,0.2520805]
[1761191531992,0.57560973,108490.0,108480.0,0.1520805]
[1761191533894,0.60871618,108490.0,108480.0,0.1520805]
[1761191534594,0.57560973,108490.0,108480.0,0.1520805]
[1761191535598,0.60872004,108490.0,108480.0,0.1520805]
[1761191536302,0.57560973,108490.0,108480.0,0.1520805]
[1761191538805,0.5259753,108490.0,108480.0,0.1520805]
[1761191543202,0.00768,108480.0,108470.0,0.1134412]
[1761191543402,1.05404706,108480.0,108470.0,0.0921712]
[1761191543594,1.0374489,108480.0,108470.0,0.0921712]
[1761191544305,0.9712406,108480.0,108470.0,0.0921712]
[1761191544811,0.9722406,108480.0,108470.0,0.0921712]
[1761191545109,1.3722406,108480.0,108470.0,0.0921712]
[1761191545311,1.42189934,108480.0,108470.0,0.0921712]
[1761191547011,1.3722406,108480.0,108470.0,0.0921712]
[1761191548217,1.42187343,108480.0,108470.0,0.0921712]
[1761191548803,1.4549623,108480.0,108470.0,0.0921712]
[1761191551812,1.4549623,108480.0,108470.0,0.0921712]
[1761191555816,1.4549623,108480.0,108470.0,0.1142212]
[1761191556810,1.4549623,108480.0,108470.0,0.1368912]
[1761191559618,1.4549623,108480.0,108470.0,0.0921712]
[1761191561016,1.42187343,108480.0,108470.0,0.0921712]
[1761191562422,0.1617853,108460.0,108450.0,0.1505906]
[1761191562622,0.18658266,108460.0,108450.0,0.1505906]
[1761191563712,0.54738266,108460.0,108450.0,0.1505906]
[1761191563911,0.88243266,108460.0,108450.0,0.1379106]
[1761191564123,0.91549581,108460.0,108450.0,0.0931906]
[1761191564317,0.88243266,108460.0,108450.0,0.0931906]
[1761191565021,0.88343266,108460.0,108450.0,0.1142406]
[1761191565432,0.89369755,108460.0,108450.0,0.1142406]
[1761191566326,0.89369755,108460.0,108450.0,0.1369106]
[1761191566527,0.89469755,108460.0,108450.0,0.1369106]
[1761191566729,0.89469755,108460.0,108450.0,0.1142406]
[1761191568037,0.88543266,108460.0,108450.0,0.1142406]
[1761191569636,0.88543266,108460.0,108450.0,0.0921906]
[1761191570638,0.88543266,108460.0,108450.0,0.1142406]
[1761191571140,0.88543266,108460.0,108450.0,0.0921906]
[1761191571940,0.89462413,108460.0,108450.0,0.0921906]
[1761191572339,0.89462413,108460.0,108450.0,0.1142406]
[1761191572934,0.89462413,108460.0,108450.0,0.1361006]
[1761191573944,0.92768728,108460.0,108450.0,0.1361006]
[1761191574546,0.92768728,108460.0,108450.0,0.1142406]
[1761191575449,0.92768728,108460.0,108450.0,0.0921906]
[1761191576246,1.04551258,108460.0,108450.0,0.0921906]
[1761191576448,0.92768728,108460.0,108450.0,0.0921906]
[1761191576740,0.80986198,108460.0,108450.0,0.0921906]
[1761191576946,0.92768728,108460.0,108450.0,0.0921906]
[1761191577849,1.04551258,108460.0,108450.0,0.0921906]
[1761191579342,1.04551258,108460.0,108440.0,0.0921991]
[1761191579548,0.6409706,108450.0,108440.0,0.1365391]
[1761191581247,0.6419706,108450.0,108440.0,0.1365391]
[1761191581644,0.6409706,108450.0,108440.0,0.1365391]
[1761191581839,0.6429706,108450.0,108440.0,0.1365391]
[1761191582046,0.6429706,108450.0,108440.0,0.1504591]
[1761191583351,0.6409706,108450.0,108440.0,0.1504591]
[1761191583553,0.6439706,108450.0,108440.0,0.1504591]
[1761191584053,0.5261453,108450.0,108440.0,0.1504591]
[1761191584253,0.6439706,108450.0,108440.0,0.1504591]
[1761191584552,0.5261453,108450.0,108440.0,0.1504591]
[1761191584753,0.64416674,108450.0,108440.0,0.1504591]
[1761191585855,0.64316674,108450.0,108440.0,0.1504591]
[1761191586047,0.64416674,108450.0,108440.0,0.1504591]
[1761191586355,0.6689641,108450.0,108440.0,0.1504591]
[1761191589259,0.70202725,108450.0,108440.0,0.1504591]
[1761191598269,0.67722989,108450.0,108440.0,0.1504591]
[1761191598562,0.46620711,108450.0,108440.0,0.8204591]
[1761191598768,0.53961048,108450.0,108440.0,0.66838247]
[1761191598966,0.55106733,108450.0,108440.0,0.5836334]
[1761191599766,0.55006733,108450.0,108440.0,0.5836334]
[1761191600471,0.54906733,108450.0,108440.0,0.5836334]
[1761191604075,0.54906733,108450.0,108440.0,0.8836334]
[1761191608883,0.54906733,108450.0,108440.0,0.8504591]
[1761191609285,0.54906733,108450.0,108440.0,0.96838247]
[1761191610083,0.54906733,108450.0,108440.0,0.8504591]
[1761191610777,0.54906733,108450.0,108440.0,0.5504591]
[1761191611180,0.54906733,108450.0,108440.0,0.8304591]
[1761191612084,0.54906733,108450.0,108440.0,0.94838247]
[1761191612274,0.50454733,108450.0,108440.0,0.98155677]
[1761191612784,0.52584733,108450.0,108440.0,1.30551677]
[1761191613488,0.54849733,108450.0,108440.0,1.30551677]
[1761191615187,0.18769733,108450.0,108440.0,1.43631677]
[1761191615381,0.14022337,108450.0,108440.0,1.43631677]
[1761191615582,0.14022337,108450.0,108440.0,1.68631677]
[1761191616379,0.90452048,108460.0,108450.0,0.0921959]
[1761191616688,0.54749733,108460.0,108450.0,0.56759927]
[1761191616990,0.54749733,108460.0,108450.0,0.60077357]
[1761191617392,0.54749733,108460.0,108450.0,0.56759927]
[1761191618293,0.18669733,108460.0,108450.0,0.4496759]
[1761191618495,0.18669733,108460.0,108450.0,1.36157357]
[1761191618496,0.001,108460.0,108450.0,1.36157357]
[1761191618682,0.11892337,108460.0,108450.0,1.41090196]
[1761191619186,0.11792337,108460.0,108450.0,1.41090196]
[1761191619382,0.11792337,108460.0,108450.0,1.36157357]
[1761191620285,0.13922337,108460.0,108450.0,1.36157357]
[1761191620793,0.11792337,108460.0,108450.0,1.36157357]
[1761191622193,0.50002337,108470.0,108460.0,0.1496674]
[1761191622393,0.52267337,108470.0,108460.0,0.1496674]
[1761191622596,0.52267337,108470.0,108460.0,0.3996674]
[1761191623694,0.16187337,108470.0,108460.0,0.3996674]
[1761191623888,0.16187337,108470.0,108460.0,0.7235474]
[1761191625496,0.16187337,108470.0,108460.0,0.84147077]
[1761191625687,0.13922337,108470.0,108460.0,0.84147077]
[1761191625881,0.52267337,108480.0,108470.0,0.1496589]
[1761191626593,0.16187337,108480.0,108470.0,0.1496589]
[1761191627799,0.04395,108480.0,108470.0,0.1496589]
[1761191627990,0.16187337,108480.0,108470.0,0.1496589]
[1761191629090,0.16187337,108480.0,108470.0,0.15890619]
[1761191631294,0.27979674,108480.0,108470.0,0.1496589]
[1761191632196,0.64059674,108480.0,108470.0,0.1496589]
[1761191632897,0.64159674,108480.0,108470.0,0.1496589]
[1761191634193,0.64159674,108480.0,108470.0,0.1359789]
[1761191634400,0.64927674,108480.0,108460.0,0.15829036]
[1761191634596,0.52380337,108470.0,108460.0,0.15829036]
[1761191635903,0.64272674,108470.0,108460.0,0.15829036]
[1761191636089,0.52480337,108470.0,108460.0,0.15829036]
[1761191638487,0.52380337,108470.0,108460.0,0.15829036]
[1761191639497,0.97324674,108470.0,108460.0,0.1489714]
[1761191640001,0.84764337,108470.0,108460.0,0.1489714]
[1761191640403,0.84764337,108470.0,108460.0,0.15810424]
[1761191641302,0.87238809,108470.0,108460.0,0.15810424]
[1761191641804,0.87338809,108470.0,108460.0,0.15810424]
[1761191642902,0.84864337,108470.0,108460.0,0.15810424]
[1761191643294,0.87338809,108470.0,108460.0,0.15810424]
[1761191645109,0.54954809,108470.0,108460.0,0.15810424]
[1761191646813,0.07082472,108470.0,108460.0,0.58596558]
[1761191647000,0.001,108470.0,108460.0,0.15810424]
[1761191647207,0.04608,108470.0,108460.0,0.49127854]
[1761191648315,0.04508,108470.0,108460.0,0.49127854]
[1761191650612,0.02333,108470.0,108460.0,0.49127854]
[1761191651010,0.43062472,108480.0,108470.0,0.1491889]
[1761191651216,0.54848606,108480.0,108470.0,0.1491889]
[1761191651808,0.43062472,108480.0,108470.0,0.1491889]
[1761191652003,0.54848606,108480.0,108470.0,0.1491889]
[1761191652210,0.43062472,108480.0,108470.0,0.1491889]
[1761191653507,0.54848606,108480.0,108470.0,0.1491889]
[1761191654912,0.54948606,108480.0,108470.0,0.1491889]
[1761191656413,0.54848606,108480.0,108470.0,0.1491889]
[1761191657111,0.43062472,108480.0,108470.0,0.1491889]
[1761191659113,0.43162472,108480.0,108470.0,0.1491889]
[1761191659520,0.43062472,108480.0,108470.0,0.1491889]
[1761191661212,0.43162472,108480.0,108470.0,0.1491889]
[1761191661407,0.55716606,108480.0,108470.0,0.1352889]
[1761191662324,0.54848606,108480.0,108470.0,0.1491889]
[1761191664124,0.54948606,108480.0,108470.0,0.1491889]
[1761191669930,0.73064,108480.0,108470.0,0.1491889]
[1761191670629,0.84850134,108480.0,108470.0,0.1491889]
[1761191670831,0.52474134,108480.0,108470.0,0.1491889]
[1761191671130,0.52374134,108480.0,108470.0,0.1352889]
[1761191671322,0.54848606,108480.0,108470.0,0.1352889]
[1761191671725,0.54948606,108480.0,108470.0,0.1352889]
[1761191673223,0.54948606,108480.0,108470.0,0.1684632]
[1761191674229,0.54948606,108480.0,108470.0,0.1812232]
[1761191675130,0.18868606,108480.0,108470.0,0.1812232]
[1761191677136,0.18768606,108480.0,108470.0,0.1812232]
[1761191677733,0.07082472,108480.0,108470.0,0.1812232]
[1761191679026,0.07082472,108480.0,108470.0,0.1480489]
[1761191679426,0.18868606,108480.0,108470.0,0.1480489]
[1761191683328,0.54948606,108480.0,108470.0,0.1480489]
[1761191688741,0.18868606,108480.0,108470.0,0.1480489]
[1761191689041,0.18868606,108480.0,108470.0,0.1812232]
[1761191690041,0.18768606,108480.0,108470.0,0.1812232]
[1761191694543,0.18868606,108480.0,108470.0,0.1812232]
[1761191699140,0.18768606,108480.0,108470.0,0.1812232]
[1761191699947,0.06982472,108480.0,108470.0,0.1812232]
[1761191700948,0.18768606,108480.0,108470.0,0.1812232]
[1761191701152,0.54848606,108480.0,108470.0,0.1812232]
[1761191702248,0.54948606,108480.0,108470.0,0.1812232]
[1761191702452,1.0673474,108480.0,108470.0,0.1470532]
[1761191702649,1.0673474,108480.0,108470.0,0.0331743]
[1761191702952,0.94948606,108480.0,108470.0,0.0921789]
[1761191703254,0.94948606,108480.0,108470.0,0.1148089]
[1761191703450,0.98254921,108480.0,108470.0,0.1363289]
[1761191704353,0.94948606,108480.0,108470.0,0.1497989]
[1761191705055,0.98254921,108480.0,108470.0,0.1497989]
[1761191705756,0.94948606,108480.0,108470.0,0.1497989]
[1761191706563,0.43162472,108480.0,108470.0,0.1497989]
[1761191706950,0.54948606,108480.0,108470.0,0.1497989]